[Event "Titled Tuesday Blitz March 07 Late 2023"]
[White "Needleman, Alejandro"]
[Black "Hernandez Sanchez, Elvis De La Caridad"]
[WhiteFideId "100730"]
[BlackFideId "6400353"]
[WhiteElo "2230"]
[BlackElo "2471"]
[Result "1-0"]
[Round "10"]
[TimeControl "180+2"]
[Date "2023.03.07"]
[WhiteClock "0:00:34"]
[BlackClock "0:00:10"]

1. e4 {[%clk 0:03:00]}  c5 {[%clk 0:02:59]} 2. Nf3 {[%clk 0:03:00]}  d6 {[%clk 0:03:00]} 3. Bc4 {[%clk 0:03:00]}  Nc6 {[%clk 0:02:59]} 4. O-O {[%clk 0:02:59]}  Nf6 {[%clk 0:02:58]} 5. Re1 {[%clk 0:02:59]}  g6 {[%clk 0:02:58]} 6. d4 {[%clk 0:02:58]}  cxd4 {[%clk 0:02:58]} 7. Nxd4 {[%clk 0:02:59]}  Bg7 {[%clk 0:02:58]} 8. Nf3 {[%clk 0:02:59]}  O-O {[%clk 0:02:58]} 9. h3 {[%clk 0:03:00]}  a6 {[%clk 0:02:49]} 10. Nc3 {[%clk 0:02:59]}  b5 {[%clk 0:02:48]} 11. Bb3 {[%clk 0:03:00]}  Bb7 {[%clk 0:02:48]} 12. Nd5 {[%clk 0:03:01]}  Na5 {[%clk 0:02:46]} 13. c3 {[%clk 0:03:00]}  Nxb3 {[%clk 0:02:45]} 14. axb3 {[%clk 0:03:01]}  e6 {[%clk 0:02:32]} 15. Nxf6+ {[%clk 0:03:00]}  Bxf6 {[%clk 0:02:33]} 16. Bh6 {[%clk 0:02:59]}  Re8 {[%clk 0:02:33]} 17. g4 {[%clk 0:02:51]}  d5 {[%clk 0:02:33]} 18. e5 {[%clk 0:02:51]}  Be7 {[%clk 0:02:27]} 19. Nd4 {[%clk 0:02:50]}  b4 {[%clk 0:02:17]} 20. Qd2 {[%clk 0:02:46]}  Qb6 {[%clk 0:02:10]} 21. Re3 {[%clk 0:02:34]}  f6 {[%clk 0:02:06]} 22. Rae1 {[%clk 0:02:23]}  bxc3 {[%clk 0:01:32]} 23. bxc3 {[%clk 0:02:21]}  Bc8 {[%clk 0:01:25]} 24. Rf3 {[%clk 0:02:19]}  fxe5 {[%clk 0:01:23]} 25. Rxe5 {[%clk 0:02:15]}  Bd6 {[%clk 0:01:23]} 26. Qe3 {[%clk 0:02:14]}  Bxe5 {[%clk 0:01:13]} 27. Qxe5 {[%clk 0:02:13]}  Ra7 {[%clk 0:01:07]} 28. Bf4 {[%clk 0:01:28]}  Rf7 {[%clk 0:01:01]} 29. Be3 {[%clk 0:01:21]}  Qc7 {[%clk 0:00:54]} 30. Qxc7 {[%clk 0:00:59]}  Rxc7 {[%clk 0:00:55]} 31. Bd2 {[%clk 0:00:53]}  e5 {[%clk 0:00:55]} 32. Ne2 {[%clk 0:00:52]}  Rf7 {[%clk 0:00:55]} 33. Rd3 {[%clk 0:00:51]}  Bb7 {[%clk 0:00:55]} 34. f4 {[%clk 0:00:48]}  e4 {[%clk 0:00:44]} 35. Re3 {[%clk 0:00:47]}  Re6 {[%clk 0:00:37]} 36. Kg2 {[%clk 0:00:47]}  Rb6 {[%clk 0:00:38]} 37. b4 {[%clk 0:00:47]}  a5 {[%clk 0:00:35]} 38. bxa5 {[%clk 0:00:46]}  Ra6 {[%clk 0:00:35]} 39. c4 {[%clk 0:00:44]}  dxc4 {[%clk 0:00:35]} 40. Kg3 {[%clk 0:00:40]}  Rd7 {[%clk 0:00:34]} 41. Bc3 {[%clk 0:00:40]}  Rd3 {[%clk 0:00:34]} 42. Kf2 {[%clk 0:00:40]}  Kf7 {[%clk 0:00:31]} 43. Rxd3 {[%clk 0:00:37]}  exd3 {[%clk 0:00:31]} 44. Nd4 {[%clk 0:00:35]}  Rd6 {[%clk 0:00:29]} 45. Ke3 {[%clk 0:00:35]}  Ba6 {[%clk 0:00:29]} 46. f5 {[%clk 0:00:34]}  gxf5 {[%clk 0:00:28]} 47. gxf5 {[%clk 0:00:35]}  Rd8 {[%clk 0:00:27]} 48. Nc6 {[%clk 0:00:34]}  Re8+ {[%clk 0:00:27]} 49. Ne5+ {[%clk 0:00:34]}  Kf6 {[%clk 0:00:26]} 50. Kf4 {[%clk 0:00:35]}  d2 {[%clk 0:00:24]} 51. Nxc4+ {[%clk 0:00:34]}  Kf7 {[%clk 0:00:23]} 52. Nxd2 {[%clk 0:00:35]}  Rc8 {[%clk 0:00:22]} 53. Ne4 {[%clk 0:00:34]}  Bb7 {[%clk 0:00:20]} 54. Nd6+ {[%clk 0:00:34]}  Kf8 {[%clk 0:00:17]} 55. Nxc8 {[%clk 0:00:35]}  Bxc8 {[%clk 0:00:17]} 56. Ke5 {[%clk 0:00:36]}  Kf7 {[%clk 0:00:17]} 57. Bb4 {[%clk 0:00:36]}  h5 {[%clk 0:00:16]} 58. h4 {[%clk 0:00:35]}  Kg7 {[%clk 0:00:14]} 59. Bc3 {[%clk 0:00:35]}  Kf7 {[%clk 0:00:14]} 60. Kf4 {[%clk 0:00:36]}  Ba6 {[%clk 0:00:14]} 61. Kg5 {[%clk 0:00:36]}  Be2 {[%clk 0:00:14]} 62. Kf4 {[%clk 0:00:34]}  Ke7 {[%clk 0:00:13]} 63. Ke5 {[%clk 0:00:34]}  Kf7 {[%clk 0:00:14]} 64. Kd6 {[%clk 0:00:34]}  Bd3 {[%clk 0:00:13]} 65. Kc7 {[%clk 0:00:34]}  Bxf5 {[%clk 0:00:12]} 66. a6 {[%clk 0:00:35]}  Be4 {[%clk 0:00:11]} 67. a7 {[%clk 0:00:35]}  Ke6 {[%clk 0:00:10]} 68. Kb8 {[%clk 0:00:34]} 1-0


[Site "https://www.chess.com"]

[Event "Titled Tuesday Blitz March 07 Late 2023"]
[White "Szente Varga, Fruzsina"]
[Black "Przybylski, Wojciech"]
[WhiteFideId "712264"]
[BlackFideId "1117599"]
[WhiteElo "1994"]
[BlackElo "2222"]
[Result "1-0"]
[Round "10"]
[TimeControl "180+2"]
[Date "2023.03.07"]
[WhiteClock "0:01:06"]
[BlackClock "0:00:05"]

1. e4 {[%clk 0:03:00]}  e5 {[%clk 0:00:44]} 2. Nf3 {[%clk 0:03:00]}  Nf6 {[%clk 0:00:38]} 3. Nc3 {[%clk 0:02:45]}  Nc6 {[%clk 0:00:35]} 4. d4 {[%clk 0:02:46]}  exd4 {[%clk 0:00:35]} 5. Nd5 {[%clk 0:02:46]}  Bc5 {[%clk 0:00:33]} 6. Bc4 {[%clk 0:02:46]}  h6 {[%clk 0:00:29]} 7. O-O {[%clk 0:02:46]}  O-O {[%clk 0:00:28]} 8. e5 {[%clk 0:02:16]}  Nxd5 {[%clk 0:00:27]} 9. Bxd5 {[%clk 0:02:17]}  d6 {[%clk 0:00:27]} 10. Bxc6 {[%clk 0:02:14]}  bxc6 {[%clk 0:00:27]} 11. Nxd4 {[%clk 0:02:14]}  dxe5 {[%clk 0:00:26]} 12. Nxc6 {[%clk 0:02:11]}  Qxd1 {[%clk 0:00:25]} 13. Rxd1 {[%clk 0:02:11]}  f6 {[%clk 0:00:24]} 14. c3 {[%clk 0:01:44]}  Bb7 {[%clk 0:00:17]} 15. Na5 {[%clk 0:01:44]}  Be4 {[%clk 0:00:17]} 16. Nb3 {[%clk 0:01:42]}  Be7 {[%clk 0:00:14]} 17. Be3 {[%clk 0:01:42]}  a6 {[%clk 0:00:12]} 18. Rd7 {[%clk 0:01:41]}  Bd6 {[%clk 0:00:12]} 19. Rd1 {[%clk 0:01:40]}  Bf5 {[%clk 0:00:11]} 20. R7xd6 {[%clk 0:01:39]}  cxd6 {[%clk 0:00:12]} 21. Rxd6 {[%clk 0:01:40]}  Rfd8 {[%clk 0:00:12]} 22. Rxd8+ {[%clk 0:01:36]}  Rxd8 {[%clk 0:00:11]} 23. h3 {[%clk 0:01:36]}  Rd1+ {[%clk 0:00:10]} 24. Kh2 {[%clk 0:01:36]}  Be6 {[%clk 0:00:09]} 25. Nc5 {[%clk 0:01:36]}  Bc8 {[%clk 0:00:07]} 26. a4 {[%clk 0:01:31]}  Ra1 {[%clk 0:00:06]} 27. Kg3 {[%clk 0:01:29]}  Kf7 {[%clk 0:00:05]} 28. Kf3 {[%clk 0:01:29]}  Ke7 {[%clk 0:00:06]} 29. Ke4 {[%clk 0:01:30]}  Kd6 {[%clk 0:00:06]} 30. Kd3 {[%clk 0:01:29]}  Kd5 {[%clk 0:00:05]} 31. c4+ {[%clk 0:01:28]}  Kc6 {[%clk 0:00:06]} 32. b4 {[%clk 0:01:28]}  Ra3+ {[%clk 0:00:06]} 33. Ke4 {[%clk 0:01:27]}  Rc3 {[%clk 0:00:04]} 34. b5+ {[%clk 0:01:27]}  Kd6 {[%clk 0:00:04]} 35. Nxa6 {[%clk 0:01:12]}  Rxc4+ {[%clk 0:00:04]} 36. Kd3 {[%clk 0:01:12]}  Rxa4 {[%clk 0:00:03]} 37. Bc5+ {[%clk 0:01:12]}  Kd5 {[%clk 0:00:03]} 38. Bf8 {[%clk 0:01:10]}  Bxa6 {[%clk 0:00:03]} 39. bxa6 {[%clk 0:01:11]}  Rxa6 {[%clk 0:00:03]} 40. Bxg7 {[%clk 0:01:11]}  f5 {[%clk 0:00:04]} 41. Ke3 {[%clk 0:01:10]}  Ra3+ {[%clk 0:00:04]} 42. Ke2 {[%clk 0:01:11]}  h5 {[%clk 0:00:04]} 43. Bh6 {[%clk 0:01:11]}  Ra2+ {[%clk 0:00:05]} 44. Kf3 {[%clk 0:01:12]}  Ra3+ {[%clk 0:00:05]} 45. Ke2 {[%clk 0:01:12]}  Ke4 {[%clk 0:00:06]} 46. f3+ {[%clk 0:01:12]}  Kd5 {[%clk 0:00:06]} 47. Kf2 {[%clk 0:01:12]}  h4 {[%clk 0:00:06]} 48. Bg5 {[%clk 0:01:12]}  Ra4 {[%clk 0:00:07]} 49. Bf6 {[%clk 0:01:12]}  Rc4 {[%clk 0:00:07]} 50. Be7 {[%clk 0:01:12]}  Ke6 {[%clk 0:00:07]} 51. Bd8 {[%clk 0:01:12]}  Ra4 {[%clk 0:00:08]} 52. Bg5 {[%clk 0:01:12]}  Kf7 {[%clk 0:00:08]} 53. Ke3 {[%clk 0:01:12]}  Kg6 {[%clk 0:00:08]} 54. Be7 {[%clk 0:01:13]}  Rd4 {[%clk 0:00:08]} 55. Ke2 {[%clk 0:01:11]}  Rc4 {[%clk 0:00:08]} 56. Ke3 {[%clk 0:01:11]}  Ra4 {[%clk 0:00:07]} 57. Bd6 {[%clk 0:01:11]}  Kf6 {[%clk 0:00:07]} 58. Bc7 {[%clk 0:01:12]}  Ra3+ {[%clk 0:00:07]} 59. Ke2 {[%clk 0:01:12]}  Ra8 {[%clk 0:00:06]} 60. Bd6 {[%clk 0:01:11]}  Ke6 {[%clk 0:00:06]} 61. Bc5 {[%clk 0:01:11]}  Ra2+ {[%clk 0:00:05]} 62. Kf1 {[%clk 0:01:11]}  Kf6 {[%clk 0:00:05]} 63. Bb6 {[%clk 0:01:11]}  Rc2 {[%clk 0:00:04]} 64. Bd8+ {[%clk 0:01:11]}  Ke6 {[%clk 0:00:03]} 65. Bxh4 {[%clk 0:01:12]}  Kd5 {[%clk 0:00:04]} 66. Bf6 {[%clk 0:01:10]}  f4 {[%clk 0:00:03]} 67. h4 {[%clk 0:01:10]}  Ke6 {[%clk 0:00:03]} 68. Bd8 {[%clk 0:01:10]}  Rd2 {[%clk 0:00:02]} 69. Bg5 {[%clk 0:01:09]}  Kf5 {[%clk 0:00:01]} 70. Be7 {[%clk 0:01:09]}  Rc2 {[%clk 0:00:02]} 71. h5 {[%clk 0:01:08]}  Ra2 {[%clk 0:00:03]} 72. h6 {[%clk 0:01:08]}  Ra1+ {[%clk 0:00:03]} 73. Kf2 {[%clk 0:01:08]}  Rh1 {[%clk 0:00:04]} 74. Bf8 {[%clk 0:01:08]}  Rh5 {[%clk 0:00:04]} 75. Bg7 {[%clk 0:01:09]}  Rh4 {[%clk 0:00:04]} 76. Ke2 {[%clk 0:01:04]}  Rh1 {[%clk 0:00:04]} 77. Kf2 {[%clk 0:01:05]}  Ke6 {[%clk 0:00:03]} 78. g4 {[%clk 0:01:03]}  Rh2+ {[%clk 0:00:02]} 79. Kg1 {[%clk 0:01:02]}  Rh4 {[%clk 0:00:02]} 80. Kg2 {[%clk 0:01:03]}  Kf7 {[%clk 0:00:03]} 81. g5 {[%clk 0:01:03]}  Kg6 {[%clk 0:00:02]} 82. Bf6 {[%clk 0:01:03]}  Rh5 {[%clk 0:00:02]} 83. Kf2 {[%clk 0:01:02]}  Kf5 {[%clk 0:00:02]} 84. Ke2 {[%clk 0:01:02]}  Rh2+ {[%clk 0:00:02]} 85. Kd3 {[%clk 0:01:02]}  Rh3 {[%clk 0:00:02]} 86. Ke2 {[%clk 0:01:02]}  Rh2+ {[%clk 0:00:02]} 87. Kf1 {[%clk 0:01:02]}  Kg6 {[%clk 0:00:02]} 88. Kg1 {[%clk 0:01:01]}  Rh3 {[%clk 0:00:03]} 89. Kg2 {[%clk 0:01:01]}  Rg3+ {[%clk 0:00:03]} 90. Kf2 {[%clk 0:01:02]}  Rh3 {[%clk 0:00:03]} 91. Bxe5 {[%clk 0:01:02]}  Kxg5 {[%clk 0:00:03]} 92. Bg7 {[%clk 0:01:03]}  Rh2+ {[%clk 0:00:03]} 93. Kg1 {[%clk 0:01:03]}  Rh5 {[%clk 0:00:03]} 94. Kg2 {[%clk 0:01:02]}  Kf5 {[%clk 0:00:04]} 95. Kf2 {[%clk 0:01:02]}  Rh2+ {[%clk 0:00:04]} 96. Kg1 {[%clk 0:01:03]}  Rh3 {[%clk 0:00:04]} 97. Kg2 {[%clk 0:01:02]}  Rh5 {[%clk 0:00:04]} 98. Bf8 {[%clk 0:01:02]}  Kg5 {[%clk 0:00:05]} 99. Bg7 {[%clk 0:01:02]}  Rh4 {[%clk 0:00:03]} 100. Bf8 {[%clk 0:01:02]}  Kf5 {[%clk 0:00:03]} 101. Kf2 {[%clk 0:01:02]}  Rh2+ {[%clk 0:00:03]} 102. Kg1 {[%clk 0:01:02]}  Rh3 {[%clk 0:00:03]} 103. Kf1 {[%clk 0:01:03]}  Kg5 {[%clk 0:00:03]} 104. Kg2 {[%clk 0:01:03]}  Rg3+ {[%clk 0:00:03]} 105. Kf2 {[%clk 0:01:03]}  Kg6 {[%clk 0:00:03]} 106. Ke2 {[%clk 0:01:03]}  Rg2+ {[%clk 0:00:03]} 107. Kd3 {[%clk 0:01:04]}  Rf2 {[%clk 0:00:03]} 108. Ke4 {[%clk 0:01:04]}  Rf1 {[%clk 0:00:03]} 109. Kxf4 {[%clk 0:01:05]}  Rd1 {[%clk 0:00:03]} 110. Kg4 {[%clk 0:01:05]}  Rg1+ {[%clk 0:00:03]} 111. Kf4 {[%clk 0:01:05]}  Rb1 {[%clk 0:00:04]} 112. Bg7 {[%clk 0:01:04]}  Rb5 {[%clk 0:00:04]} 113. Kg4 {[%clk 0:01:04]}  Rb4+ {[%clk 0:00:04]} 114. f4 {[%clk 0:01:05]}  Rb1 {[%clk 0:00:04]} 115. f5+ {[%clk 0:01:05]}  Kh7 {[%clk 0:00:04]} 116. Kg5 {[%clk 0:01:05]}  Rg1+ {[%clk 0:00:05]} 117. Kf6 {[%clk 0:01:06]}  Rf1 {[%clk 0:00:05]} 118. Ke6 {[%clk 0:01:06]} 1-0


[Site "https://www.chess.com"]

[Event "Titled Tuesday Blitz March 07 Late 2023"]
[White "Leonte, Sebastian-Marian"]
[Black "Rangel, Daniel"]
[WhiteFideId "1268767"]
[BlackFideId "2124475"]
[WhiteElo "2296"]
[BlackElo "2256"]
[Result "1/2-1/2"]
[Round "10"]
[TimeControl "180+2"]
[Date "2023.03.07"]
[WhiteClock "0:00:08"]
[BlackClock "0:00:06"]

1. e4 {[%clk 0:02:58]}  c5 {[%clk 0:02:59]} 2. Nf3 {[%clk 0:02:56]}  d6 {[%clk 0:02:59]} 3. d4 {[%clk 0:02:55]}  cxd4 {[%clk 0:03:00]} 4. Nxd4 {[%clk 0:02:56]}  Nf6 {[%clk 0:03:01]} 5. Nc3 {[%clk 0:02:56]}  g6 {[%clk 0:03:00]} 6. Be3 {[%clk 0:02:55]}  Bg7 {[%clk 0:03:00]} 7. f3 {[%clk 0:02:55]}  O-O {[%clk 0:03:01]} 8. Bc4 {[%clk 0:02:54]}  Nc6 {[%clk 0:03:02]} 9. Bb3 {[%clk 0:02:53]}  Bd7 {[%clk 0:03:02]} 10. h4 {[%clk 0:02:53]}  Qa5 {[%clk 0:03:02]} 11. Qd2 {[%clk 0:02:50]}  Rfc8 {[%clk 0:03:01]} 12. O-O-O {[%clk 0:02:39]}  Ne5 {[%clk 0:03:01]} 13. Kb1 {[%clk 0:02:34]}  Rab8 {[%clk 0:02:57]} 14. h5 {[%clk 0:02:33]}  Nxh5 {[%clk 0:02:57]} 15. g4 {[%clk 0:02:32]}  Nf6 {[%clk 0:02:55]} 16. Rdg1 {[%clk 0:01:57]}  b5 {[%clk 0:02:52]} 17. Bh6 {[%clk 0:01:48]}  Bxh6 {[%clk 0:02:48]} 18. Rxh6 {[%clk 0:01:43]}  Rxc3 {[%clk 0:02:49]} 19. Qxc3 {[%clk 0:01:36]}  Qxc3 {[%clk 0:02:35]} 20. bxc3 {[%clk 0:01:37]}  a5 {[%clk 0:02:36]} 21. a3 {[%clk 0:01:31]}  Rc8 {[%clk 0:02:19]} 22. Kb2 {[%clk 0:01:27]}  Kg7 {[%clk 0:02:08]} 23. Rh2 {[%clk 0:01:22]}  Be8 {[%clk 0:02:03]} 24. Rf2 {[%clk 0:01:14]}  Nfd7 {[%clk 0:02:00]} 25. Nxb5 {[%clk 0:01:01]}  Nc5 {[%clk 0:01:55]} 26. a4 {[%clk 0:00:38]}  Ncd3+ {[%clk 0:01:45]} 27. cxd3 {[%clk 0:00:38]}  Nxd3+ {[%clk 0:01:46]} 28. Kc2 {[%clk 0:00:37]}  Nxf2 {[%clk 0:01:47]} 29. Rg3 {[%clk 0:00:33]}  Kf6 {[%clk 0:01:17]} 30. Kd2 {[%clk 0:00:27]}  Ke5 {[%clk 0:01:02]} 31. Nd4 {[%clk 0:00:24]}  Bd7 {[%clk 0:00:30]} 32. Ne2 {[%clk 0:00:21]}  Bxg4 {[%clk 0:00:29]} 33. Rxg4 {[%clk 0:00:15]}  Nxg4 {[%clk 0:00:28]} 34. fxg4 {[%clk 0:00:16]}  f6 {[%clk 0:00:27]} 35. Bd5 {[%clk 0:00:14]}  h6 {[%clk 0:00:24]} 36. Nd4 {[%clk 0:00:14]}  Kf4 {[%clk 0:00:21]} 37. Nc6 {[%clk 0:00:12]}  Rc7 {[%clk 0:00:20]} 38. Nxa5 {[%clk 0:00:12]}  Kxg4 {[%clk 0:00:19]} 39. Nb7 {[%clk 0:00:12]}  Kf4 {[%clk 0:00:14]} 40. a5 {[%clk 0:00:12]}  Rc8 {[%clk 0:00:14]} 41. a6 {[%clk 0:00:12]}  Ra8 {[%clk 0:00:15]} 42. Bc4 {[%clk 0:00:08]}  Ra7 {[%clk 0:00:15]} 43. Na5 {[%clk 0:00:07]}  h5 {[%clk 0:00:15]} 44. Nc6 {[%clk 0:00:07]}  Ra8 {[%clk 0:00:15]} 45. a7 {[%clk 0:00:07]}  h4 {[%clk 0:00:15]} 46. e5 {[%clk 0:00:06]}  dxe5 {[%clk 0:00:14]} 47. Ba6 {[%clk 0:00:05]}  h3 {[%clk 0:00:14]} 48. Bb7 {[%clk 0:00:06]}  h2 {[%clk 0:00:14]} 49. Bxa8 {[%clk 0:00:04]}  h1=Q {[%clk 0:00:13]} 50. Bb7 {[%clk 0:00:04]}  Qh2+ {[%clk 0:00:12]} 51. Kd3 {[%clk 0:00:05]}  Qg3+ {[%clk 0:00:11]} 52. Kc2 {[%clk 0:00:05]}  Qf2+ {[%clk 0:00:11]} 53. Kc1 {[%clk 0:00:04]}  Qf1+ {[%clk 0:00:10]} 54. Kc2 {[%clk 0:00:05]}  Qe2+ {[%clk 0:00:10]} 55. Kc1 {[%clk 0:00:05]}  Qe3+ {[%clk 0:00:09]} 56. Kc2 {[%clk 0:00:06]}  Qe2+ {[%clk 0:00:05]} 57. Kc1 {[%clk 0:00:06]}  Qf1+ {[%clk 0:00:04]} 58. Kc2 {[%clk 0:00:07]}  Qf2+ {[%clk 0:00:05]} 59. Kc1 {[%clk 0:00:07]}  Qg1+ {[%clk 0:00:06]} 60. Kc2 {[%clk 0:00:08]}  Qf2+ {[%clk 0:00:06]} 1/2-1/2


[Site "https://www.chess.com"]

[Event "Titled Tuesday Blitz March 07 Late 2023"]
[White "Chan, Kim Yew"]
[Black "Ramirez, Maria Eugenia"]
[WhiteFideId "5717981"]
[BlackFideId "3301680"]
[WhiteElo "2206"]
[BlackElo "1842"]
[Result "1-0"]
[Round "10"]
[TimeControl "180+2"]
[Date "2023.03.07"]
[WhiteClock "0:00:07"]
[BlackClock "0:00:01"]

1. e4 {[%clk 0:02:58]}  e5 {[%clk 0:02:59]} 2. Nf3 {[%clk 0:02:57]}  Nc6 {[%clk 0:02:59]} 3. Bb5 {[%clk 0:02:58]}  Nd4 {[%clk 0:02:59]} 4. Nxd4 {[%clk 0:02:52]}  exd4 {[%clk 0:02:59]} 5. O-O {[%clk 0:02:43]}  h5 {[%clk 0:02:58]} 6. c3 {[%clk 0:02:38]}  Bc5 {[%clk 0:02:57]} 7. b4 {[%clk 0:02:32]}  Bb6 {[%clk 0:02:53]} 8. Bb2 {[%clk 0:02:22]}  c6 {[%clk 0:02:51]} 9. Bc4 {[%clk 0:02:20]}  d5 {[%clk 0:02:46]} 10. exd5 {[%clk 0:02:16]}  cxd5 {[%clk 0:02:46]} 11. Bb5+ {[%clk 0:02:03]}  Kf8 {[%clk 0:02:46]} 12. cxd4 {[%clk 0:01:15]}  Qf6 {[%clk 0:02:41]} 13. Nc3 {[%clk 0:01:03]}  Be6 {[%clk 0:02:38]} 14. Qf3 {[%clk 0:01:00]}  Bxd4 {[%clk 0:02:26]} 15. Qd3 {[%clk 0:00:52]}  Be5 {[%clk 0:01:54]} 16. Rae1 {[%clk 0:00:35]}  Ne7 {[%clk 0:01:52]} 17. Nxd5 {[%clk 0:00:32]}  Bxd5 {[%clk 0:01:25]} 18. Bxe5 {[%clk 0:00:31]}  Qg6 {[%clk 0:01:17]} 19. Qxg6 {[%clk 0:00:27]}  Nxg6 {[%clk 0:01:17]} 20. Bd6+ {[%clk 0:00:26]}  Kg8 {[%clk 0:01:16]} 21. d4 {[%clk 0:00:22]}  Bxa2 {[%clk 0:01:15]} 22. h3 {[%clk 0:00:18]}  Bd5 {[%clk 0:01:14]} 23. Bd3 {[%clk 0:00:14]}  Rd8 {[%clk 0:01:10]} 24. Bc7 {[%clk 0:00:12]}  Rc8 {[%clk 0:01:09]} 25. Bxg6 {[%clk 0:00:12]}  fxg6 {[%clk 0:01:05]} 26. Re7 {[%clk 0:00:12]}  Kh7 {[%clk 0:01:01]} 27. Rfe1 {[%clk 0:00:11]}  Rhf8 {[%clk 0:00:47]} 28. R1e5 {[%clk 0:00:06]}  Bc4 {[%clk 0:00:41]} 29. d5 {[%clk 0:00:06]}  Rf4 {[%clk 0:00:27]} 30. d6 {[%clk 0:00:05]}  Rff8 {[%clk 0:00:20]} 31. Rc5 {[%clk 0:00:04]}  b5 {[%clk 0:00:09]} 32. d7 {[%clk 0:00:04]}  Rcd8 {[%clk 0:00:01]} 33. Bxd8 {[%clk 0:00:02]}  Rxd8 {[%clk 0:00:02]} 34. Rc8 {[%clk 0:00:03]}  Rxd7 {[%clk 0:00:02]} 35. Rxd7 {[%clk 0:00:04]}  Be6 {[%clk 0:00:02]} 36. Rcc7 {[%clk 0:00:05]}  Bf5 {[%clk 0:00:01]} 37. Rxa7 {[%clk 0:00:04]}  Kh6 {[%clk 0:00:02]} 38. Rd5 {[%clk 0:00:05]}  h4 {[%clk 0:00:02]} 39. Rxf5 {[%clk 0:00:05]}  g5 {[%clk 0:00:01]} 40. Rb7 {[%clk 0:00:06]}  g6 {[%clk 0:00:01]} 41. Rfxb5 {[%clk 0:00:07]} 1-0


[Site "https://www.chess.com"]

[Event "Titled Tuesday Blitz March 07 Late 2023"]
[White "Pinheiro, Iung Alicio de O."]
[Black "Quinones Garcia, Santiago"]
[WhiteFideId "2104350"]
[BlackFideId "4408497"]
[WhiteElo "2283"]
[BlackElo "2263"]
[Result "0-1"]
[Round "10"]
[TimeControl "180+2"]
[Date "2023.03.07"]
[WhiteClock "0:00:01"]
[BlackClock "0:00:39"]

1. e4 {[%clk 0:03:00]}  e5 {[%clk 0:02:57]} 2. Nf3 {[%clk 0:02:59]}  Nc6 {[%clk 0:02:57]} 3. Bb5 {[%clk 0:02:58]}  a6 {[%clk 0:02:56]} 4. Ba4 {[%clk 0:02:54]}  Nf6 {[%clk 0:02:55]} 5. d3 {[%clk 0:02:51]}  b5 {[%clk 0:02:55]} 6. Bb3 {[%clk 0:02:50]}  Be7 {[%clk 0:02:54]} 7. O-O {[%clk 0:02:49]}  O-O {[%clk 0:02:55]} 8. a4 {[%clk 0:02:45]}  Rb8 {[%clk 0:02:54]} 9. axb5 {[%clk 0:02:39]}  axb5 {[%clk 0:02:54]} 10. c3 {[%clk 0:02:39]}  d6 {[%clk 0:02:55]} 11. Nbd2 {[%clk 0:02:31]}  h6 {[%clk 0:02:54]} 12. Re1 {[%clk 0:02:29]}  Bb7 {[%clk 0:02:52]} 13. Nf1 {[%clk 0:02:24]}  Re8 {[%clk 0:02:52]} 14. Ng3 {[%clk 0:02:19]}  Bf8 {[%clk 0:02:52]} 15. h3 {[%clk 0:02:17]}  Ne7 {[%clk 0:02:49]} 16. Nh2 {[%clk 0:02:12]}  Ng6 {[%clk 0:02:48]} 17. Ng4 {[%clk 0:02:08]}  c5 {[%clk 0:02:42]} 18. Nxf6+ {[%clk 0:01:59]}  Qxf6 {[%clk 0:02:41]} 19. Nh5 {[%clk 0:01:59]}  Qe7 {[%clk 0:02:35]} 20. Qg4 {[%clk 0:01:47]}  Kh7 {[%clk 0:02:34]} 21. Qf5 {[%clk 0:01:40]}  c4 {[%clk 0:02:16]} 22. dxc4 {[%clk 0:01:35]}  Bc8 {[%clk 0:02:16]} 23. Qf3 {[%clk 0:01:32]}  Be6 {[%clk 0:02:17]} 24. Be3 {[%clk 0:01:04]}  bxc4 {[%clk 0:02:15]} 25. Ba4 {[%clk 0:00:52]}  Rec8 {[%clk 0:02:13]} 26. Ra2 {[%clk 0:00:41]}  Qb7 {[%clk 0:01:56]} 27. Rd1 {[%clk 0:00:31]}  Nh4 {[%clk 0:01:52]} 28. Qg3 {[%clk 0:00:30]}  Qxe4 {[%clk 0:01:52]} 29. Ba7 {[%clk 0:00:15]}  Ra8 {[%clk 0:01:43]} 30. f3 {[%clk 0:00:14]}  Qg6 {[%clk 0:01:32]} 31. Qxh4 {[%clk 0:00:14]}  Rxa7 {[%clk 0:01:31]} 32. Rda1 {[%clk 0:00:12]}  Rca8 {[%clk 0:01:18]} 33. g4 {[%clk 0:00:10]}  Kg8 {[%clk 0:01:12]} 34. Qf2 {[%clk 0:00:10]}  Qd3 {[%clk 0:00:54]} 35. Ng3 {[%clk 0:00:08]}  Qd5 {[%clk 0:00:53]} 36. Ne4 {[%clk 0:00:05]}  Bd7 {[%clk 0:00:52]} 37. Bb3 {[%clk 0:00:05]}  Rxa2 {[%clk 0:00:51]} 38. Rxa2 {[%clk 0:00:06]}  Rxa2 {[%clk 0:00:52]} 39. Bxa2 {[%clk 0:00:06]}  Qd1+ {[%clk 0:00:50]} 40. Kg2 {[%clk 0:00:07]}  d5 {[%clk 0:00:51]} 41. Nc5 {[%clk 0:00:05]}  Bc6 {[%clk 0:00:49]} 42. b4 {[%clk 0:00:03]}  cxb3 {[%clk 0:00:46]} 43. Bxb3 {[%clk 0:00:03]}  Qc1 {[%clk 0:00:45]} 44. Ba4 {[%clk 0:00:02]}  Qxc3 {[%clk 0:00:41]} 45. Bxc6 {[%clk 0:00:01]}  Bxc5 {[%clk 0:00:41]} 46. Qe2 {[%clk 0:00:01]}  Qd4 {[%clk 0:00:39]} 0-1


[Site "https://www.chess.com"]

[Event "Titled Tuesday Blitz March 07 Late 2023"]
[White "Kraus, Tomas"]
[Black "Kukavica, Tony"]
[WhiteFideId "331708"]
[BlackFideId "2062542"]
[WhiteElo "2389"]
[BlackElo "1993"]
[Result "0-1"]
[Round "10"]
[TimeControl "180+2"]
[Date "2023.03.07"]
[WhiteClock "0:00:16"]
[BlackClock "0:00:36"]

1. e4 {[%clk 0:03:00]}  c5 {[%clk 0:02:59]} 2. Nc3 {[%clk 0:03:00]}  e6 {[%clk 0:02:59]} 3. f4 {[%clk 0:03:01]}  d5 {[%clk 0:02:57]} 4. d3 {[%clk 0:03:01]}  Nc6 {[%clk 0:02:55]} 5. Nf3 {[%clk 0:03:01]}  Nf6 {[%clk 0:02:54]} 6. e5 {[%clk 0:02:59]}  Nd7 {[%clk 0:02:54]} 7. g3 {[%clk 0:02:59]}  Be7 {[%clk 0:02:54]} 8. Bg2 {[%clk 0:02:59]}  O-O {[%clk 0:02:54]} 9. O-O {[%clk 0:02:59]}  Rb8 {[%clk 0:02:55]} 10. h4 {[%clk 0:02:45]}  b5 {[%clk 0:02:54]} 11. h5 {[%clk 0:02:44]}  b4 {[%clk 0:02:51]} 12. Ne2 {[%clk 0:02:42]}  a5 {[%clk 0:02:46]} 13. Be3 {[%clk 0:02:41]}  Ba6 {[%clk 0:02:44]} 14. g4 {[%clk 0:02:36]}  c4 {[%clk 0:02:42]} 15. d4 {[%clk 0:02:25]}  c3 {[%clk 0:02:37]} 16. b3 {[%clk 0:02:25]}  a4 {[%clk 0:02:34]} 17. f5 {[%clk 0:02:23]}  Qb6 {[%clk 0:02:28]} 18. Kh2 {[%clk 0:02:17]}  Ndxe5 {[%clk 0:02:26]} 19. Nxe5 {[%clk 0:01:33]}  Nxe5 {[%clk 0:02:25]} 20. Kh3 {[%clk 0:01:34]}  Nd7 {[%clk 0:01:59]} 21. Rf2 {[%clk 0:01:29]}  Nf6 {[%clk 0:01:57]} 22. Ng3 {[%clk 0:01:28]}  Bd6 {[%clk 0:01:53]} 23. g5 {[%clk 0:01:08]}  Bxg3 {[%clk 0:01:50]} 24. gxf6 {[%clk 0:01:08]}  Bxf2 {[%clk 0:01:46]} 25. Qg4 {[%clk 0:01:08]}  g6 {[%clk 0:01:43]} 26. hxg6 {[%clk 0:01:06]}  fxg6 {[%clk 0:01:28]} 27. fxg6 {[%clk 0:01:05]}  Rxf6 {[%clk 0:01:22]} 28. gxh7+ {[%clk 0:01:02]}  Kh8 {[%clk 0:01:01]} 29. Bxf2 {[%clk 0:00:23]}  Rxf2 {[%clk 0:00:54]} 30. Qg3 {[%clk 0:00:23]}  Rf6 {[%clk 0:00:44]} 31. Qe5 {[%clk 0:00:20]}  Rf8 {[%clk 0:00:42]} 32. Rf1 {[%clk 0:00:18]}  Bxf1 {[%clk 0:00:41]} 33. Bxf1 {[%clk 0:00:16]}  Qb8 {[%clk 0:00:36]} 0-1


[Site "https://www.chess.com"]